fUSD/lending_fUSD_20260620
["ID","MTS","AMOUNT","RATE_DAILY","PERIOD"]
[425825134,1781943047000,-382.0,0.0002,2]
[425825133,1781943047000,-367.92274218,0.0002,2]
[425825136,1781943047000,-297.0,0.0002,2]
[425825113,1781943047000,-20503.18,0.00019178,2]
[425825128,1781943047000,-1829.88707699,0.0001995,15]
[425825115,1781943047000,-3802.04642221,0.00019239,2]
[425825062,1781943047000,-1065.27401051,0.00016438,2]
[425825102,1781943047000,-201.3,0.0001841,2]
[425825064,1781943047000,-1065.27401051,0.00016438,2]
[425825067,1781943047000,-1065.27401051,0.00016438,2]
[425825073,1781943047000,-1065.27401051,0.00016438,2]
[425825071,1781943047000,-1065.27401051,0.00016438,2]
[425825069,1781943047000,-1065.27401051,0.00016438,2]
[425825080,1781943047000,-723.19,0.00016867,2]
[425825076,1781943047000,-2874.31712485,0.00016438,2]
[425825084,1781943047000,-1236.10306238,0.0001692,2]
[425825082,1781943047000,-1555.5,0.00016889,2]
[425825111,1781943047000,-154.11,0.0001912,2]
[425825078,1781943047000,-177.06,0.00016721,2]
[425825091,1781943047000,-465.76,0.00017886,2]
[425825093,1781943047000,-250.0,0.00017895,2]
[425825089,1781943047000,-1613.0535,0.00017437,2]
[425825096,1781943047000,-1440.47870811,0.00017985,2]
[425825106,1781943047000,-1236.10306238,0.00018918,2]
[425825109,1781943047000,-1798.80895522,0.00019081,2]
[425825098,1781943047000,-1672.7364795,0.00017985,2]
[425825104,1781943047000,-1734.62772924,0.00018533,2]
[425825100,1781943047000,-154.11,0.00018164,2]
[425825086,1781943047000,-154.11,0.00017208,2]
[425825137,1781943047000,-520.0,0.0002,2]
[425825151,1781943047000,-154.0,0.00021,2]
[425825140,1781943047000,-1934.38338736,0.00020177,2]
[425825166,1781943047000,-151.0,0.00021273,2]
[425825165,1781943047000,-151.0,0.00021273,2]
[425825167,1781943047000,-151.0,0.00021273,2]
[425825168,1781943047000,-500.0,0.00021273,2]
[425825170,1781943047000,-151.0,0.00021273,2]
[425825171,1781943047000,-500.0,0.00021273,2]
[425825169,1781943047000,-151.0,0.00021273,2]
[425825172,1781943047000,-151.0,0.00021273,2]
[425825173,1781943047000,-2080.17592889,0.00021273,2]
[425825164,1781943047000,-151.0,0.00021273,2]
[425825175,1781943047000,-500.0,0.00021273,2]
[425825176,1781943047000,-151.0,0.00021273,2]
[425825177,1781943047000,-151.0,0.00021273,2]
[425825179,1781943047000,-151.0,0.00021273,2]
[425825180,1781943047000,-151.0,0.00021273,2]
[425825178,1781943047000,-500.0,0.00021273,2]
[425825181,1781943047000,-500.0,0.00021273,2]
[425825182,1781943047000,-151.0,0.00021273,2]
[425825184,1781943047000,-151.0,0.00021273,2]
[425825183,1781943047000,-500.0,0.00021273,2]
[425825174,1781943047000,-151.0,0.00021273,2]
[425825162,1781943047000,-151.0,0.00021273,2]
[425825139,1781943047000,-154.11,0.00020076,2]
[425825161,1781943047000,-151.0,0.00021273,2]
[425825138,1781943047000,-186.0,0.0002,2]
[425825142,1781943047000,-201.3,0.00020381,2]
[425825141,1781943047000,-11729.13,0.00020309,2]
[425825145,1781943047000,-3802.04642215,0.00020757,2]
[425825143,1781943047000,-10817.41,0.00020548,2]
[425825144,1781943047000,-2005.9555727,0.00020725,2]
[425825147,1781943047000,-625.7995,0.0002079,2]
[425825146,1781943047000,-626.1775,0.0002079,2]
[425825149,1781943047000,-587.0,0.00021,2]
[425825148,1781943047000,-1236.10306238,0.00020915,2]
[425825163,1781943047000,-151.0,0.00021273,2]
[425825152,1781943047000,-382.0,0.00021,2]
[425825153,1781943047000,-203.0,0.00021,2]
[425825155,1781943047000,-520.0,0.00021,2]
[425825154,1781943047000,-297.0,0.00021,2]
[425825156,1781943047000,-186.0,0.00021,2]
[425825157,1781943047000,-154.11,0.00021032,2]
[425825158,1781943047000,-500.0,0.00021048,2]
[425825159,1781943047000,-151.0,0.00021273,2]
[425825160,1781943047000,-151.0,0.00021273,2]
[425825150,1781943047000,-826.0,0.00021,2]
[425825201,1781943048000,-151.0,0.00021273,2]
[425825199,1781943048000,-151.0,0.00021273,2]
[425825198,1781943048000,-151.0,0.00021273,2]
[425825205,1781943048000,-410.7752362,0.00021918,2]
[425825203,1781943048000,-1299.62069615,0.00021821,2]
[425825207,1781943048000,-169.59,0.00021918,2]
[425825202,1781943048000,-166.66,0.00021631,2]
[425825197,1781943048000,-500.0,0.00021273,2]
[425825195,1781943048000,-500.0,0.00021273,2]
[425825190,1781943048000,-151.0,0.00021273,2]
[425825196,1781943048000,-151.0,0.00021273,2]
[425825194,1781943048000,-151.0,0.00021273,2]
[425825191,1781943048000,-151.0,0.00021273,2]
[425825206,1781943048000,-4589.2247638,0.00021918,2]
[425825188,1781943048000,-151.0,0.00021273,2]
[425825189,1781943048000,-500.0,0.00021273,2]
[425825192,1781943048000,-500.0,0.00021273,2]
[425825185,1781943048000,-151.0,0.00021273,2]
[425825186,1781943048000,-500.0,0.00021273,2]
[425825187,1781943048000,-151.0,0.00021273,2]
[425825193,1781943048000,-151.0,0.00021273,2]
[425825208,1781943048000,-154.11,0.00021988,2]
[425825200,1781943048000,-151.0,0.00021273,2]
[425825210,1781943048000,-826.0,0.00022,2]
[425825209,1781943048000,-587.0,0.00022,2]
[425825231,1781943048000,-167.34709179,0.0002263,2]
[425825230,1781943048000,-240.90924617,0.00022618,2]
[425825229,1781943048000,-1057.83701526,0.00022618,2]
[425825226,1781943048000,-1220.27,0.00022562,2]
[425825224,1781943048000,-500.0,0.00022562,2]
[425825227,1781943048000,-155.15,0.00022618,2]
[425825225,1781943048000,-1985.09,0.00022562,2]
[425825228,1781943048000,-955.23373857,0.00022618,2]
[425825223,1781943048000,-166.66,0.00022541,30]
[425825222,1781943048000,-200.0,0.00022431,2]
[425825204,1781943048000,-857.52174211,0.00021821,2]
[425825221,1781943048000,-2236.95670847,0.00022369,2]
[425825220,1781943048000,-201.3,0.00022353,2]
[425825218,1781943048000,-453.39,0.0002211,2]
[425825214,1781943048000,-297.0,0.00022,2]
[425825215,1781943048000,-520.0,0.00022,2]
[425825216,1781943048000,-186.0,0.00022,2]
[425825213,1781943048000,-203.0,0.00022,2]
[425825217,1781943048000,-166.66,0.00022086,30]
[425825219,1781943048000,-3802.04642215,0.00022275,2]
[425825212,1781943048000,-382.0,0.00022,2]
[425825211,1781943048000,-1765.08263732,0.00022,2]
[425825232,1781943267000,-194.68361593,0.00013542,2]
[425825233,1781943321000,-151.0,0.00013546,2]
[425825234,1781943325000,981.0,0.0002152,120]
[425825235,1781943326000,981.0,0.00022596,120]
[425825236,1781943328000,981.0,0.00023726,120]
[425825237,1781943330000,981.0,0.00024912,120]
[425825238,1781943331000,981.0,0.00026157,120]
[425825239,1781943333000,981.0,0.00027465,120]
[425825240,1781943334000,981.0,0.00028839,120]
[425825241,1781943375000,-315.0,0.00013548,2]
[425825243,1781943428000,-500.0,0.00013561,2]
[425825244,1781943482000,-313.0,0.00013561,2]
[425825245,1781943536000,-256.54431578,0.0001356,2]
[425825246,1781943589000,-315.0,0.0001356,2]
[425825247,1781943604000,294.0,0.00022842,120]
[425825248,1781943606000,294.0,0.00023984,120]
[425825249,1781943607000,294.0,0.00025183,120]
[425825250,1781943608000,294.0,0.00026442,120]
[425825251,1781943610000,294.0,0.00027764,120]
[425825252,1781943611000,294.0,0.00029153,120]
[425825253,1781943643000,-310.0,0.0001356,2]
[425825254,1781943644000,2000.0,0.00030137,120]
[425825255,1781943696000,-12777.02117747,0.00013559,8]
[425825256,1781943750000,-151.0,0.00013559,2]
[425825257,1781943845000,526.0,0.00030137,120]
[425825258,1781943907000,169.0,0.00023558,120]
[425825259,1781943909000,169.0,0.00024736,120]
[425825260,1781943910000,169.0,0.00025973,120]
[425825261,1781943911000,169.0,0.00027272,120]
[425825262,1781943913000,169.0,0.00028635,120]
[425825263,1781943914000,169.0,0.00030067,120]
[425825264,1781943959000,-648.312546,0.00013489,2]
[425825265,1781944013000,-500.0,0.00013489,2]
[425825266,1781944067000,-177.19837953,0.00013556,2]
[425825267,1781944121000,-150.0,0.00013556,2]
[425825269,1781944146000,-380.57088653,0.00013555,2]
[425825268,1781944146000,-179.58102104,0.00013555,2]
[425825270,1781944174000,-20.79450969,0.00013555,2]
[425825271,1781944205000,171.0,0.00023643,120]
[425825272,1781944228000,-350.5722833,0.00012755,2]
[425825284,1781944232000,-500.0,0.00013555,2]
[425825287,1781944232000,-153.0,0.00013556,2]
[425825283,1781944232000,-500.0,0.00013555,2]
[425825288,1781944232000,-151.0,0.00013556,2]
[425825286,1781944232000,-152.0,0.00013555,2]
[425825276,1781944232000,-150.0,0.00013554,2]
[425825279,1781944232000,-500.0,0.00013555,2]
[425825281,1781944232000,-500.0,0.00013555,2]
[425825277,1781944232000,-577.27483973,0.00013555,2]
[425825278,1781944232000,-500.0,0.00013555,2]
[425825290,1781944232000,-153.03432694,0.00013556,2]
[425825282,1781944232000,-500.0,0.00013555,2]
[425825289,1781944232000,-150.0,0.00013556,2]
[425825285,1781944232000,-151.0,0.00013555,2]
[425825292,1781944232000,-5000.00000002,0.00013558,8]
[425825302,1781944232000,-152.0,0.00013559,2]
[425825291,1781944232000,-150.0,0.00013557,2]
[425825303,1781944232000,-1000.0,0.00013559,2]
[425825305,1781944232000,-1000.0,0.00013559,2]
[425825304,1781944232000,-1000.0,0.00013559,2]
[425825299,1781944232000,-151.0,0.00013559,2]
[425825300,1781944232000,-151.0,0.00013559,2]
[425825301,1781944232000,-151.0,0.00013559,2]
[425825297,1781944232000,-151.0,0.00013558,2]
[425825298,1781944232000,-151.0,0.00013558,2]
[425825294,1781944232000,-151.0,0.00013558,2]
[425825296,1781944232000,-151.0,0.00013558,2]
[425825293,1781944232000,-151.0,0.00013558,2]
[425825295,1781944232000,-151.0,0.00013558,2]
[425825344,1781944233000,-150.0,0.00013632,2]
[425825342,1781944233000,-314.0,0.00013563,2]
[425825343,1781944233000,-321.0,0.0001362,2]
[425825336,1781944233000,-314.0,0.00013561,2]
[425825340,1781944233000,-153.0,0.00013561,2]
[425825335,1781944233000,-320.0,0.00013561,2]
[425825337,1781944233000,-319.0,0.00013561,2]
[425825341,1781944233000,-309.0,0.00013563,2]
[425825339,1781944233000,-500.0,0.00013561,2]
[425825346,1781944233000,-312.0,0.00013798,2]
[425825338,1781944233000,-151.0,0.00013561,2]
[425825345,1781944233000,-150.0,0.00013693,2]
[425825352,1781944233000,-379.93488803,0.0001403,2]
[425825347,1781944233000,-316.0,0.00013798,2]
[425825349,1781944233000,-151.0,0.00013952,2]
[425825348,1781944233000,-150.0,0.00013828,2]
[425825350,1781944233000,-150.0,0.00013964,2]
[425825353,1781944233000,-500.0,0.0001403,2]
[425825354,1781944233000,-300.0,0.0001403,2]
[425825355,1781944233000,-286.0,0.00014099,2]
[425825356,1781944233000,-209.34238986,0.0001491,2]
[425825358,1781944233000,-300.0,0.0001491,2]
[425825357,1781944233000,-500.0,0.0001491,2]
[425825334,1781944233000,-150.0,0.00013561,2]
[425825351,1781944233000,-300.0,0.0001403,2]
[425825332,1781944233000,-315.0,0.00013561,2]
[425825314,1781944233000,-151.0,0.0001356,2]
[425825330,1781944233000,-316.0,0.00013561,2]
[425825362,1781944233000,-396.52501354,0.00016437,2]
[425825306,1781944233000,-150.0,0.00013559,2]
[425825307,1781944233000,-151.0,0.00013559,2]
[425825309,1781944233000,-318.0,0.0001356,2]
[425825308,1781944233000,-151.0,0.0001356,2]
[425825310,1781944233000,-315.0,0.0001356,2]
[425825312,1781944233000,-150.0,0.0001356,2]
[425825315,1781944233000,-151.0,0.0001356,2]
[425825313,1781944233000,-250.90692131,0.0001356,2]
[425825311,1781944233000,-319.0,0.0001356,2]
[425825316,1781944233000,-151.0,0.0001356,2]
[425825319,1781944233000,-151.0,0.0001356,2]
[425825318,1781944233000,-150.0,0.0001356,2]
[425825317,1781944233000,-151.0,0.0001356,2]
[425825321,1781944233000,-151.0,0.00013561,2]
[425825320,1781944233000,-314.0,0.00013561,2]
[425825323,1781944233000,-309.0,0.00013561,2]
[425825322,1781944233000,-318.0,0.00013561,2]
[425825324,1781944233000,-150.0,0.00013561,2]
[425825325,1781944233000,-315.0,0.00013561,2]
[425825326,1781944233000,-319.0,0.00013561,2]
[425825328,1781944233000,-152.0,0.00013561,2]
[425825327,1781944233000,-311.0,0.00013561,2]
[425825329,1781944233000,-315.0,0.00013561,2]
[425825331,1781944233000,-153.0,0.00013561,2]
[425825333,1781944233000,-311.0,0.00013561,2]
[425825359,1781944233000,-193.0,0.00014912,2]
[425825370,1781944233000,-244.0,0.00016438,2]
[425825361,1781944233000,-1500.0,0.00016347,2]
[425825392,1781944233000,-1051.7784593,0.00016438,2]
[425825393,1781944233000,-1051.7784593,0.00016438,2]
[425825399,1781944233000,-1051.7784593,0.00016438,2]
[425825395,1781944233000,-1051.7784593,0.00016438,2]
[425825397,1781944233000,-1051.7784593,0.00016438,2]
[425825398,1781944233000,-1051.7784593,0.00016438,2]
[425825396,1781944233000,-1051.7784593,0.00016438,2]
[425825400,1781944233000,-1051.7784593,0.00016438,2]
[425825401,1781944233000,-1051.7784593,0.00016438,2]
[425825404,1781944233000,-1051.7784593,0.00016438,2]
[425825403,1781944233000,-1051.7784593,0.00016438,2]
[425825391,1781944233000,-1051.7784593,0.00016438,2]
[425825402,1781944233000,-1051.7784593,0.00016438,2]
[425825408,1781944233000,-1051.7784593,0.00016438,2]
[425825405,1781944233000,-1051.7784593,0.00016438,2]
[425825410,1781944233000,-1051.7784593,0.00016438,2]
[425825407,1781944233000,-1051.7784593,0.00016438,2]
[425825409,1781944233000,-1051.7784593,0.00016438,2]
[425825411,1781944233000,-1051.7784593,0.00016438,2]
[425825413,1781944233000,-1051.7784593,0.00016438,2]
[425825415,1781944233000,-1051.7784593,0.00016438,2]
[425825412,1781944233000,-1051.7784593,0.00016438,2]
[425825416,1781944233000,-1051.7784593,0.00016438,2]
[425825365,1781944233000,-500.0,0.00016437,2]
[425825406,1781944233000,-1051.7784593,0.00016438,2]
[425825389,1781944233000,-1051.7784593,0.00016438,2]
[425825394,1781944233000,-1051.7784593,0.00016438,2]
[425825388,1781944233000,-1051.7784593,0.00016438,2]
[425825360,1781944233000,-3823.0893,0.00016338,2]
[425825364,1781944233000,-500.0,0.00016437,2]
[425825363,1781944233000,-500.0,0.00016437,2]
[425825367,1781944233000,-500.0,0.00016437,2]
[425825366,1781944233000,-500.0,0.00016437,2]
[425825369,1781944233000,-551.34184329,0.00016437,2]
[425825390,1781944233000,-1051.7784593,0.00016438,2]
[425825371,1781944233000,-209.7,0.00016438,2]
[425825414,1781944233000,-1051.7784593,0.00016438,2]
[425825375,1781944233000,-1051.7784593,0.00016438,2]
[425825377,1781944233000,-1051.7784593,0.00016438,2]
[425825374,1781944233000,-1051.7784593,0.00016438,2]
[425825372,1781944233000,-1051.7784593,0.00016438,2]
[425825368,1781944233000,-500.0,0.00016437,2]
[425825373,1781944233000,-1051.7784593,0.00016438,2]
[425825376,1781944233000,-1051.7784593,0.00016438,2]
[425825385,1781944233000,-1051.7784593,0.00016438,2]
[425825381,1781944233000,-1051.7784593,0.00016438,2]
[425825383,1781944233000,-1051.7784593,0.00016438,2]
[425825386,1781944233000,-1051.7784593,0.00016438,2]
[425825382,1781944233000,-1051.7784593,0.00016438,2]
[425825387,1781944233000,-1051.7784593,0.00016438,2]
[425825384,1781944233000,-1051.7784593,0.00016438,2]
[425825380,1781944233000,-1051.7784593,0.00016438,2]
[425825379,1781944233000,-1051.7784593,0.00016438,2]
[425825378,1781944233000,-1051.7784593,0.00016438,2]
[425825429,1781944234000,-802.88484329,0.00016438,2]
[425825425,1781944234000,-1027.73780881,0.00016438,2]
[425825423,1781944234000,-1051.7784593,0.00016438,2]
[425825427,1781944234000,-1027.73780881,0.00016438,2]
[425825426,1781944234000,-1027.73780881,0.00016438,2]
[425825430,1781944234000,-1027.73780881,0.00016438,2]
[425825417,1781944234000,-1051.7784593,0.00016438,2]
[425825424,1781944234000,-1051.7784593,0.00016438,2]
[425825422,1781944234000,-1051.7784593,0.00016438,2]
[425825421,1781944234000,-1051.7784593,0.00016438,2]
[425825420,1781944234000,-1051.7784593,0.00016438,2]
[425825419,1781944234000,-1051.7784593,0.00016438,2]
[425825431,1781944234000,-1027.73780881,0.00016438,2]
[425825428,1781944234000,-224.85296552,0.00016438,2]
[425825432,1781944234000,-328.26586978,0.00016438,2]
[425825418,1781944234000,-1051.7784593,0.00016438,2]
[425825436,1781944234000,-1027.73780881,0.00016438,2]
[425825433,1781944234000,-699.47193903,0.00016438,2]
[425825446,1781944234000,-1027.73780881,0.00016438,2]
[425825447,1781944234000,-1027.73780881,0.00016438,2]
[425825448,1781944234000,-429.9180704,0.00016438,2]
[425825445,1781944234000,-1027.73780881,0.00016438,2]
[425825443,1781944234000,-1027.73780881,0.00016438,2]
[425825444,1781944234000,-1027.73780881,0.00016438,2]
[425825442,1781944234000,-1027.73780881,0.00016438,2]
[425825440,1781944234000,-1027.73780881,0.00016438,2]
[425825437,1781944234000,-1027.73780881,0.00016438,2]
[425825438,1781944234000,-1027.73780881,0.00016438,2]
[425825439,1781944234000,-1027.73780881,0.00016438,2]
[425825441,1781944234000,-1027.73780881,0.00016438,2]
[425825434,1781944234000,-1027.73780881,0.00016438,2]
[425825435,1781944234000,-1027.73780881,0.00016438,2]
[425825452,1781944238000,-172.72,0.00016721,2]
[425825453,1781944238000,-166.66,0.00016825,2]
[425825454,1781944238000,-1555.5,0.00016895,2]
[425825455,1781944238000,-231.25,0.00017001,2]
[425825456,1781944238000,-781.3838564,0.00017163,2]
[425825451,1781944238000,-166.66,0.00016478,2]
[425825465,1781944240000,-250.0,0.00017911,2]
[425825457,1781944240000,-345.6061436,0.00017163,2]
[425825459,1781944240000,-177.06,0.00017219,2]
[425825460,1781944240000,-160.58,0.00017305,2]
[425825458,1781944240000,-166.66,0.00017172,2]
[425825462,1781944240000,-166.66,0.00017519,2]
[425825461,1781944240000,-1613.0535,0.00017443,2]
[425825463,1781944240000,-245.123883,0.00017808,2]
[425825464,1781944240000,-166.66,0.00017866,2]
[425825467,1781944240000,-231.25,0.00017946,2]
[425825466,1781944240000,-150.0,0.00017922,2]
[425825470,1781944240000,-209.7,0.0001841,2]
[425825468,1781944240000,-1672.7364795,0.00017991,2]
[425825472,1781944240000,-216.0,0.00018538,2]
[425825469,1781944240000,-166.66,0.00018213,2]
[425825483,1781944240000,-216.0,0.00019358,2]
[425825482,1781944240000,-150.99,0.00019339,2]
[425825480,1781944240000,-1109.61,0.00019339,2]
[425825478,1781944240000,-500.0,0.0001926,2]
[425825477,1781944240000,-3676.55881918,0.00019239,2]
[425825481,1781944240000,-2124.59,0.00019339,2]
[425825476,1781944240000,-1798.80895522,0.00019087,2]
[425825475,1781944240000,-231.25,0.0001889,2]
[425825474,1781944240000,-172.72,0.00018811,2]
[425825473,1781944240000,-1734.62772924,0.00018539,2]
[425825471,1781944240000,-216.0,0.00018536,2]
[425825479,1781944240000,-1188.44,0.00019339,2]
[425825518,1781944241000,-200.0,0.00021279,2]
[425825521,1781944241000,-151.0,0.00021279,2]
[425825520,1781944241000,-151.0,0.00021279,2]
[425825517,1781944241000,-4877.37814044,0.00021273,2]
[425825515,1781944241000,-155.0,0.00021,2]
[425825516,1781944241000,-760.0,0.00021,2]
[425825514,1781944241000,-158.0,0.00021,2]
[425825513,1781944241000,-150.0,0.00021,2]
[425825519,1781944241000,-151.0,0.00021279,2]
[425825509,1781944241000,-373.2076998,0.0002099,2]
[425825522,1781944241000,-151.0,0.00021279,2]
[425825528,1781944241000,-151.0,0.00021279,2]
[425825524,1781944241000,-151.0,0.00021279,2]
[425825525,1781944241000,-151.0,0.00021279,2]
[425825527,1781944241000,-151.0,0.00021279,2]
[425825529,1781944241000,-151.0,0.00021279,2]
[425825532,1781944241000,-151.0,0.00021279,2]
[425825526,1781944241000,-151.0,0.00021279,2]
[425825531,1781944241000,-151.0,0.00021279,2]
[425825533,1781944241000,-500.0,0.00021279,2]
[425825530,1781944241000,-500.0,0.00021279,2]
[425825512,1781944241000,-260.0,0.00021,2]
[425825523,1781944241000,-151.0,0.00021279,2]
[425825510,1781944241000,-152.0,0.00021,2]
[425825489,1781944241000,-231.25,0.00019835,2]
[425825511,1781944241000,-173.0,0.00021,2]
[425825534,1781944241000,-151.0,0.00021279,2]
[425825485,1781944241000,-284.0,0.00019452,2]
[425825487,1781944241000,-1865.36488656,0.00019635,2]
[425825484,1781944241000,-216.0,0.0001936,2]
[425825486,1781944241000,-493.0,0.00019452,2]
[425825488,1781944241000,-2665.13634009,0.00019677,2]
[425825490,1781944241000,-201.83773776,0.00019854,2]
[425825492,1781944241000,-164.0,0.0002,2]
[425825493,1781944241000,-152.0,0.0002,2]
[425825494,1781944241000,-173.0,0.0002,2]
[425825497,1781944241000,-155.0,0.0002,2]
[425825495,1781944241000,-260.0,0.0002,2]
[425825500,1781944241000,-284.0,0.00020136,2]
[425825499,1781944241000,-588.15666631,0.0002,2]
[425825496,1781944241000,-158.0,0.0002,2]
[425825498,1781944241000,-760.0,0.0002,2]
[425825501,1781944241000,-1934.38338736,0.00020183,2]
[425825502,1781944241000,-209.7,0.00020381,2]
[425825503,1781944241000,-3676.5588191,0.00020658,2]
[425825504,1781944241000,-2005.9555727,0.00020731,2]
[425825506,1781944241000,-284.0,0.00020821,2]
[425825507,1781944241000,-494.0,0.00020821,2]
[425825508,1781944241000,-172.72,0.00020902,2]
[425825505,1781944241000,-231.25,0.00020779,2]
[425825536,1781944241000,-151.0,0.00021279,2]
[425825491,1781944241000,-166.0,0.0002,2]
[425825538,1781944241000,-151.0,0.00021279,2]
[425825562,1781944241000,-2500.0,0.00021424,2]
[425825569,1781944241000,-500.0,0.00021523,2]
[425825564,1781944241000,-500.0,0.00021523,2]
[425825566,1781944241000,-500.0,0.00021523,2]
[425825567,1781944241000,-500.0,0.00021523,2]
[425825570,1781944241000,-500.0,0.00021523,2]
[425825571,1781944241000,-500.0,0.00021523,2]
[425825573,1781944241000,-500.0,0.00021523,2]
[425825572,1781944241000,-640.84652929,0.00021523,2]
[425825576,1781944241000,-500.0,0.00021523,2]
[425825580,1781944241000,-6369.7172957,0.00021524,2]
[425825574,1781944241000,-500.0,0.00021523,2]
[425825577,1781944241000,-500.0,0.00021523,2]
[425825582,1781944241000,-39529.8940771,0.00021524,2]
[425825535,1781944241000,-2080.17592889,0.00021279,2]
[425825578,1781944241000,-500.0,0.00021523,2]
[425825581,1781944241000,-411457.4968674,0.00021524,2]
[425825583,1781944241000,-194.09,0.00021524,7]
[425825579,1781944241000,-213.8453188,0.00021523,2]
[425825584,1781944241000,-356.0,0.00021609,2]
[425825586,1781944241000,-1087.07,0.00021631,2]
[425825585,1781944241000,-554.41,0.00021631,2]
[425825587,1781944241000,-231.25,0.00021724,2]
[425825565,1781944241000,-158.0,0.00021523,2]
[425825568,1781944241000,-526.11229447,0.00021523,2]
[425825575,1781944241000,-508.87990619,0.00021523,2]
[425825561,1781944241000,-2000.0,0.00021424,2]
[425825537,1781944241000,-500.0,0.00021279,2]
[425825563,1781944241000,-284.0,0.00021506,2]
[425825539,1781944241000,-151.0,0.00021279,2]
[425825540,1781944241000,-500.0,0.00021279,2]
[425825544,1781944241000,-151.0,0.00021279,2]
[425825543,1781944241000,-500.0,0.00021279,2]
[425825545,1781944241000,-151.0,0.00021279,2]
[425825542,1781944241000,-151.0,0.00021279,2]
[425825541,1781944241000,-151.0,0.00021279,2]
[425825548,1781944241000,-151.0,0.00021279,2]
[425825547,1781944241000,-500.0,0.00021279,2]
[425825549,1781944241000,-235.05467129,0.00021279,2]
[425825546,1781944241000,-151.0,0.00021279,2]
[425825560,1781944241000,-3656.68210703,0.00021424,2]
[425825550,1781944241000,-500.0,0.00021279,2]
[425825553,1781944241000,-151.0,0.00021279,2]
[425825552,1781944241000,-500.0,0.00021279,2]
[425825558,1781944241000,-151.0,0.00021279,2]
[425825555,1781944241000,-151.0,0.00021279,2]
[425825554,1781944241000,-500.0,0.00021279,2]
[425825557,1781944241000,-500.0,0.00021279,2]
[425825556,1781944241000,-500.0,0.00021279,2]
[425825551,1781944241000,-151.0,0.00021279,2]
[425825559,1781944241000,-151.0,0.00021279,2]
[425825622,1781944242000,-200.0,0.00022856,2]
[425825621,1781944242000,-200.0,0.00022834,2]
[425825624,1781944242000,-286.78306349,0.00022923,2]
[425825620,1781944242000,-200.0,0.00022816,2]
[425825613,1781944242000,-500.0,0.00022603,2]
[425825619,1781944242000,-388.85655169,0.00022703,2]
[425825618,1781944242000,-215.51666731,0.00022703,2]
[425825617,1781944242000,-171.7956335,0.00022703,2]
[425825625,1781944242000,-2319.72410669,0.00022923,2]
[425825623,1781944242000,-200.0,0.00022862,2]
[425825626,1781944242000,-1021.84,0.00022929,7]
[425825638,1781944242000,-3676.5588191,0.00023496,2]
[425825628,1781944242000,-152.0,0.00023,2]
[425825629,1781944242000,-173.0,0.00023,2]
[425825630,1781944242000,-260.0,0.00023,2]
[425825631,1781944242000,-286.0,0.00023,2]
[425825637,1781944242000,-2405.55389863,0.00023471,2]
[425825633,1781944242000,-155.0,0.00023,2]
[425825635,1781944242000,-200.0,0.00023085,2]
[425825636,1781944242000,-200.0,0.00023316,2]
[425825634,1781944242000,-760.0,0.00023,2]
[425825632,1781944242000,-158.0,0.00023,2]
[425825612,1781944242000,-3656.68210698,0.00022537,2]
[425825627,1781944242000,-357.150451,0.00022979,2]
[425825615,1781944242000,-231.25,0.00022668,2]
[425825590,1781944242000,-2157.14243826,0.00021827,2]
[425825611,1781944242000,-336.99,0.00022466,2]